fUST/lending_fUST_20241113
["ID","MTS","AMOUNT","RATE_DAILY","PERIOD"]
[342144999,1731505848436,-3999.3,0.0002509,2]
[342145000,1731505848536,-500.0,0.00020337,2]
[342145001,1731505848547,-227.21,0.00020611,2]
[342145002,1731505848556,-338.58940872,0.00021433,2]
[342145003,1731505848568,-161.41059128,0.00021433,2]
[342145004,1731505848577,-500.0,0.00021707,2]
[342145005,1731505848587,-500.0,0.00021981,2]
[342145006,1731505848596,-500.0,0.00022255,2]
[342145007,1731505848606,-500.0,0.00022529,2]
[342145008,1731505848615,-151.075,0.00022622,2]
[342145009,1731505848624,-500.0,0.00022803,2]
[342145010,1731505848634,-500.0,0.00023077,2]
[342145011,1731505848643,-500.0,0.00023351,2]
[342145012,1731505848653,-17093.63946672,0.0002509,2]
[342145013,1731505848802,-500.0,0.00019788,2]
[342145014,1731505848812,-547.44,0.00019788,2]
[342145015,1731505848821,-68.40496077,0.00019789,2]
[342145016,1731505848833,-431.59503923,0.00019789,2]
[342145017,1731505848843,-500.0,0.00019789,2]
[342145018,1731505848853,-500.0,0.00019789,2]
[342145019,1731505848863,-575.53,0.00019789,2]
[342145020,1731505848873,-1169.27083333,0.0002,2]
[342145022,1731505848980,-500.0,0.00020062,2]
[342145023,1731505848989,-2684.46722656,0.00025089,2]
[342145024,1731505849001,-11507.1387976,0.0002509,2]
[342145046,1731506041034,164.091865,0.00013973,2]
[342145055,1731506477013,-199.55164,0.00028,120]
[342145056,1731506477093,-300.44836,0.00028,120]
[342145057,1731506477119,-114.27582,0.000284,120]
[342145058,1731506477598,-100.44836,0.000284,120]
[342145059,1731506477625,-200.0,0.000284,120]
[342145060,1731506477652,-114.27582,0.00029,120]
[342145061,1731506477746,-36.72418,0.00029,120]
[342145062,1731506477773,-300.0,0.00029,120]
[342145063,1731506477800,-214.72418,0.000298,120]
[342145064,1731506477826,-200.0,0.000298,120]
[342145065,1731506477852,-2000.0,0.0003,120]
[342145066,1731506477877,-500.0,0.0003,120]
[342145067,1731506477902,-1468.0,0.0003,120]
[342145068,1731506477928,-4251.55164,0.0003,120]
[342145085,1731506664583,-331.584882,0.00018753,2]
[342145086,1731506664616,-250.0,0.00018831,2]
[342145087,1731506664650,-189.058396,0.00019178,2]
[342145088,1731506664682,-331.584882,0.00019438,2]
[342145089,1731506664715,-960.75637157,0.00019687,2]
[342145090,1731506664746,-766.14023594,0.00019687,2]
[342145091,1731506664778,-3530.90484504,0.00019687,2]
[342145092,1731506664813,-154.0925082,0.00019688,2]
[342145093,1731506664846,-202.98424096,0.00019773,2]
[342145094,1731506664878,-631.81302016,0.00019773,2]
[342145095,1731506664916,-300.0,0.00019785,2]
[342145096,1731506664950,-300.0,0.00019785,2]
[342145097,1731506664981,-518.44631369,0.00019786,2]
[342145098,1731506665013,-613.53931776,0.00019786,2]
[342145099,1731506665047,-500.0,0.00019786,2]
[342145100,1731506665078,-500.0,0.00019786,2]
[342145101,1731506665110,-500.0,0.00019786,2]
[342145102,1731506665146,-500.0,0.00019786,2]
[342145103,1731506665178,-500.0,0.00019786,2]
[342145104,1731506665212,-504.36,0.00019786,2]
[342145105,1731506665244,-500.0,0.00019786,2]
[342145106,1731506665275,-500.0,0.00019786,2]
[342145107,1731506665310,-500.0,0.00019786,2]
[342145108,1731506665352,-500.0,0.00019786,2]
[342145109,1731506665395,-500.0,0.00019786,2]
[342145110,1731506665433,-500.0,0.00019786,2]
[342145111,1731506665477,-500.0,0.00019786,2]
[342145112,1731506665520,-500.0,0.00019786,2]
[342145113,1731506665563,-500.0,0.00019786,2]
[342145114,1731506665603,-500.0,0.00019786,2]
[342145115,1731506665646,-500.0,0.00019786,2]
[342145116,1731506665694,-500.0,0.00019786,2]
[342145117,1731506665730,-500.0,0.00019786,2]
[342145118,1731506665768,-500.0,0.00019786,2]
[342145119,1731506665808,-516.9576808,0.00019786,2]
[342145120,1731506665850,-397.77730588,0.00019786,2]
[342145121,1731506667625,198.41,0.00027,60]
[342145122,1731506669088,1556.2,0.00027,60]
[342145124,1731506741744,-554.7258885,0.00018692,2]
[342145125,1731506741778,-19445.2741115,0.00018787,2]
[342145126,1731506775742,-5454.7258885,0.00018787,2]
[342145173,1731506855933,151.0,0.00027,60]
[342145186,1731506870514,-1251.4116666,0.00018936,2]
[342145257,1731507032914,-419.015,0.00019489,2]
[342145258,1731507032928,-154.0925082,0.00019688,2]
[342145259,1731507032940,-300.0,0.00019783,2]
[342145260,1731507032952,-300.0,0.00019783,2]
[342145261,1731507032965,-500.0,0.00019784,2]
[342145262,1731507032977,-500.0,0.00019784,2]
[342145263,1731507032989,-500.0,0.00019784,2]
[342145264,1731507033004,-500.0,0.00019784,2]
[342145265,1731507033016,-500.0,0.00019784,2]
[342145266,1731507033029,-500.0,0.00019784,2]
[342145267,1731507033042,-507.24821054,0.00019784,2]
[342145268,1731507033056,-2917.81,0.00019784,2]
[342145269,1731507033068,-332.90869307,0.00019785,2]
[342145270,1731507033080,-500.0,0.00019785,2]
[342145271,1731507033093,-500.0,0.00019785,2]
[342145272,1731507033105,-500.0,0.00019785,2]
[342145273,1731507033117,-647.94094405,0.00019785,2]
[342145274,1731507033130,-500.0,0.00019785,2]
[342145275,1731507033143,-500.0,0.00019785,2]
[342145276,1731507033156,-502.62562,0.00019785,2]
[342145277,1731507033169,-500.0,0.00019785,2]
[342145278,1731507033181,-500.0,0.00019785,2]
[342145279,1731507033192,-534.88870715,0.00019785,2]
[342145280,1731507033204,-500.0,0.00019785,2]
[342145281,1731507033215,-500.0,0.00019785,2]
[342145282,1731507033229,-500.0,0.00019785,2]
[342145283,1731507033240,-500.0,0.00019785,2]
[342145284,1731507033255,-500.0,0.00019785,2]
[342145285,1731507033268,-500.0,0.00019785,2]
[342145286,1731507033281,-500.0,0.00019785,2]
[342145287,1731507033294,-500.0,0.00019785,2]
[342145288,1731507033307,-500.0,0.00019785,2]
[342145289,1731507033319,-500.0,0.00019785,2]
[342145290,1731507033331,-500.0,0.00019785,2]
[342145291,1731507033344,-988.89,0.00019785,2]
[342145293,1731507033356,-500.0,0.00019785,2]
[342145294,1731507033370,-500.0,0.00019785,2]
[342145295,1731507033384,-500.0,0.00019785,2]
[342145297,1731507033398,-500.0,0.00019785,2]
[342145298,1731507033408,-500.0,0.00019785,2]
[342145299,1731507033420,-500.0,0.00019785,2]
[342145301,1731507033431,-500.0,0.00019785,2]
[342145303,1731507033442,-500.0,0.00019785,2]
[342145305,1731507033453,-646.17,0.00019785,2]
[342145307,1731507033465,-500.0,0.00019785,2]
[342145310,1731507033478,-500.0,0.00019785,2]
[342145312,1731507033490,-500.0,0.00019785,2]
[342145314,1731507033513,-500.0,0.00019785,2]
[342145315,1731507033525,-500.0,0.00019785,2]
[342145316,1731507033537,-883.29,0.00019785,2]
[342145318,1731507033548,-500.0,0.00019785,2]
[342145320,1731507033559,-500.0,0.00019785,2]
[342145322,1731507033571,-500.0,0.00019785,2]
[342145324,1731507033590,-500.0,0.00019785,2]
[342145326,1731507033603,-500.0,0.00019785,2]
[342145328,1731507033615,-500.0,0.00019785,2]
[342145330,1731507033626,-500.0,0.00019785,2]
[342145332,1731507033638,-500.0,0.00019785,2]
[342145334,1731507033650,-500.0,0.00019785,2]
[342145336,1731507033662,-500.0,0.00019785,2]
[342145338,1731507033674,-500.0,0.00019785,2]
[342145340,1731507033685,-500.0,0.00019785,2]
[342145342,1731507033698,-500.0,0.00019785,2]
[342145344,1731507033709,-500.0,0.00019785,2]
[342145345,1731507033721,-500.0,0.00019785,2]
[342145346,1731507033732,-667.508424,0.00019786,2]
[342145348,1731507033750,-102.22269412,0.00019786,2]
[342145349,1731507033762,-500.0,0.00019786,2]
[342145350,1731507033775,-500.0,0.00019786,2]
[342145351,1731507033788,-505.15260685,0.00019786,2]
[342145352,1731507033802,-500.0,0.00019786,2]
[342145353,1731507033814,-500.0,0.00019786,2]
[342145354,1731507033825,-500.0,0.00019786,2]
[342145355,1731507033837,-452.29748454,0.00019786,2]
[342145356,1731507033849,-500.0,0.00019786,2]
[342145357,1731507033860,-500.0,0.00019786,2]
[342145358,1731507033872,-500.0,0.00019786,2]
[342145359,1731507033883,-500.0,0.00019786,2]
[342145360,1731507033894,-500.0,0.00019786,2]
[342145361,1731507033905,-200.52067939,0.00019786,2]
[342145362,1731507033917,-500.0,0.00019786,2]
[342145363,1731507033927,-523.42,0.00019786,2]
[342145364,1731507033938,-200.0,0.00019786,2]
[342145365,1731507033949,-500.0,0.00019786,2]
[342145366,1731507033961,-277.18913449,0.00019786,2]
[342145367,1731507033972,-500.0,0.00019786,2]
[342145368,1731507033983,-512.12201057,0.00019786,2]
[342145369,1731507033997,-500.0,0.00019786,2]
[342145370,1731507034008,-500.0,0.00019786,2]
[342145371,1731507034019,-628.388,0.00019786,2]
[342145372,1731507034030,-500.0,0.00019786,2]
[342145373,1731507034041,-500.0,0.00019786,2]
[342145374,1731507034052,-500.0,0.00019786,2]
[342145375,1731507034062,-235.54320577,0.00019786,2]
[342145376,1731507034073,-500.0,0.00019786,2]
[342145377,1731507034084,-500.0,0.00019786,2]
[342145378,1731507034096,-500.0,0.00019786,2]
[342145379,1731507034107,-500.0,0.00019786,2]
[342145380,1731507034118,-500.0,0.00019786,2]
[342145381,1731507034128,-500.0,0.00019786,2]
[342145382,1731507034139,-500.0,0.00019786,2]
[342145383,1731507034150,-500.0,0.00019786,2]
[342145384,1731507034160,-500.0,0.00019786,2]
[342145385,1731507034171,-500.0,0.00019786,2]
[342145386,1731507034182,-500.0,0.00019786,2]
[342145387,1731507034193,-500.0,0.00019786,2]
[342145388,1731507034204,-500.0,0.00019786,2]
[342145389,1731507034214,-500.0,0.00019786,2]
[342145390,1731507034225,-500.0,0.00019786,2]
[342145391,1731507034236,-500.0,0.00019786,2]
[342145392,1731507034250,-403.93298344,0.00019786,2]
[342145393,1731507034261,-500.0,0.00019786,2]
[342145394,1731507034271,-502.24805344,0.00019786,2]
[342145395,1731507034282,-500.0,0.00019786,2]
[342145396,1731507034293,-500.0,0.00019786,2]
[342145397,1731507034304,-500.0,0.00019786,2]
[342145398,1731507034315,-500.0,0.00019786,2]
[342145399,1731507034326,-500.0,0.00019786,2]
[342145400,1731507034336,-500.0,0.00019786,2]
[342145401,1731507034347,-500.0,0.00019786,2]
[342145402,1731507034357,-500.0,0.00019786,2]
[342145403,1731507034368,-500.0,0.00019786,2]
[342145404,1731507034379,-500.0,0.00019786,2]
[342145405,1731507034389,-500.0,0.00019786,2]
[342145406,1731507034400,-500.0,0.00019786,2]
[342145407,1731507034410,-500.0,0.00019786,2]
[342145408,1731507034421,-500.0,0.00019786,2]
[342145409,1731507034432,-500.0,0.00019786,2]
[342145410,1731507034442,-500.0,0.00019786,2]
[342145411,1731507034632,-500.0,0.00019786,2]
[342145412,1731507034643,-500.0,0.00019786,2]
[342145413,1731507034654,-500.0,0.00019786,2]
[342145414,1731507034665,-500.0,0.00019786,2]
[342145415,1731507034676,-500.0,0.00019786,2]
[342145416,1731507034686,-500.0,0.00019786,2]
[342145417,1731507034696,-562.61559849,0.00019786,2]
[342145418,1731507034705,-500.0,0.00019786,2]
[342145419,1731507034715,-500.0,0.00019786,2]
[342145420,1731507034725,-500.0,0.00019786,2]
[342145421,1731507034735,-500.0,0.00019786,2]
[342145422,1731507034751,-500.0,0.00019786,2]
[342145423,1731507034762,-500.0,0.00019786,2]
[342145424,1731507034771,-500.0,0.00019786,2]
[342145425,1731507034781,-500.0,0.00019786,2]
[342145426,1731507034791,-500.0,0.00019786,2]
[342145427,1731507034800,-508.78547687,0.00019786,2]
[342145428,1731507034810,-502.29759029,0.00019786,2]
[342145429,1731507034819,-420.04838695,0.00019786,2]
[342145430,1731507034926,-89.90824591,0.00019786,2]
[342145431,1731507034936,-500.0,0.00019786,2]
[342145432,1731507034946,-500.0,0.00019786,2]
[342145433,1731507034955,-500.0,0.00019786,2]
[342145434,1731507034965,-500.0,0.00019786,2]
[342145435,1731507034974,-649.98938687,0.00019786,2]
[342145436,1731507034984,-501.56184812,0.00019786,2]
[342145437,1731507034996,-502.36144633,0.00019786,2]
[342145438,1731507035009,-508.42422608,0.00019786,2]
[342145439,1731507035018,-500.0,0.00019786,2]
[342145440,1731507035028,-500.0,0.00019786,2]
[342145441,1731507035037,-500.0,0.00019786,2]
[342145442,1731507035048,-500.0,0.00019786,2]
[342145443,1731507035057,-500.0,0.00019786,2]
[342145444,1731507035066,-500.0,0.00019786,2]
[342145445,1731507035075,-500.0,0.00019786,2]
[342145446,1731507035085,-517.1593827,0.00019786,2]
[342145447,1731507035094,-504.79558081,0.00019786,2]
[342145448,1731507035104,-500.0,0.00019786,2]
[342145449,1731507035113,-503.41395219,0.00019786,2]
[342145450,1731507035122,-500.0,0.00019786,2]
[342145451,1731507035132,-500.0,0.00019786,2]
[342145452,1731507035142,-500.0,0.00019786,2]
[342145453,1731507035151,-500.0,0.00019786,2]
[342145454,1731507035160,-500.0,0.00019786,2]
[342145455,1731507035169,-500.0,0.00019786,2]
[342145456,1731507035178,-500.0,0.00019786,2]
[342145457,1731507035187,-275.69877462,0.00019786,2]
[342145458,1731507035199,-228.35829398,0.00019786,2]
[342145459,1731507035208,-501.55424939,0.00019786,2]
[342145460,1731507035217,-502.95279049,0.00019786,2]
[342145461,1731507035226,-515.85061139,0.00019786,2]
[342145462,1731507035235,-504.09996615,0.00019786,2]
[342145463,1731507035243,-518.033117,0.00019786,2]
[342145464,1731507035258,-500.0,0.00019786,2]
[342145465,1731507035267,-500.0,0.00019786,2]
[342145466,1731507035277,-500.0,0.00019786,2]
[342145467,1731507035287,-500.33588263,0.00019786,2]
[342145468,1731507035296,-500.0,0.00019786,2]
[342145469,1731507035306,-500.0,0.00019786,2]
[342145470,1731507035315,-599.42888934,0.00019786,2]
[342145471,1731507035326,-500.0,0.00019786,2]
[342145472,1731507035335,-500.0,0.00019786,2]
[342145473,1731507035345,-500.0,0.00019786,2]
[342145474,1731507035354,-511.08797148,0.00019786,2]
[342145475,1731507035363,-500.0,0.00019786,2]
[342145476,1731507035372,-500.0,0.00019786,2]
[342145477,1731507035381,-500.0,0.00019786,2]
[342145478,1731507035391,-500.0,0.00019786,2]
[342145479,1731507035400,-500.0,0.00019786,2]
[342145480,1731507035410,-413.09142522,0.00019786,2]
[342145481,1731507035419,-500.0,0.00019786,2]
[342145482,1731507035429,-500.0,0.00019786,2]
[342145483,1731507035438,-500.0,0.00019786,2]
[342145484,1731507035447,-626.28464389,0.00019786,2]
[342145485,1731507035456,-500.0,0.00019786,2]
[342145486,1731507035466,-365.83335408,0.00019786,2]
[342145487,1731507035475,-500.0,0.00019786,2]
[342145488,1731507035485,-500.0,0.00019786,2]
[342145489,1731507035500,-502.46651273,0.00019786,2]
[342145490,1731507035509,-500.0,0.00019786,2]
[342145491,1731507035519,-500.0,0.00019786,2]
[342145492,1731507035527,-503.80459437,0.00019786,2]
[342145493,1731507035537,-500.0,0.00019786,2]
[342145494,1731507035546,-500.0,0.00019786,2]
[342145495,1731507035555,-500.0,0.00019786,2]
[342145496,1731507035564,-500.0,0.00019786,2]
[342145497,1731507035575,-500.0,0.00019786,2]
[342145498,1731507035584,-500.0,0.00019786,2]
[342145499,1731507035595,-505.78587668,0.00019786,2]
[342145500,1731507035605,-500.0,0.00019787,2]
[342145501,1731507035614,-500.0,0.00019787,2]
[342145502,1731507035623,-500.0,0.00019787,2]
[342145503,1731507035632,-500.0,0.00019787,2]
[342145504,1731507035642,-633.1284135,0.00019787,2]
[342145505,1731507035653,-500.0,0.00019787,2]
[342145506,1731507035664,-500.0,0.00019787,2]
[342145507,1731507035673,-467.62878701,0.00019787,2]
[342145508,1731507035683,-500.0,0.00019787,2]
[342145509,1731507035692,-500.0,0.00019787,2]
[342145510,1731507035702,-500.0,0.00019787,2]
[342145511,1731507035711,-500.0,0.00019787,2]
[342145512,1731507035720,-500.0,0.00019788,2]
[342145513,1731507035730,-500.0,0.00019788,2]
[342145514,1731507035740,-500.0,0.00019788,2]
[342145515,1731507035755,-500.0,0.00019788,2]
[342145516,1731507035765,-500.0,0.00019788,2]
[342145517,1731507035774,-500.0,0.00019788,2]
[342145518,1731507035784,-501.45447203,0.00019788,2]
[342145519,1731507035793,-500.0,0.00019788,2]
[342145520,1731507035803,-500.0,0.00019788,2]
[342145521,1731507035812,-500.0,0.00019788,2]
[342145522,1731507035822,-547.35445166,0.00019788,2]
[342145523,1731507035832,-500.0,0.00019788,2]
[342145524,1731507035841,-500.0,0.00019788,2]
[342145525,1731507035851,-500.0,0.00019788,2]
[342145526,1731507035860,-500.0,0.00019788,2]
[342145527,1731507035870,-500.0,0.00019788,2]
[342145528,1731507035879,-500.0,0.00019788,2]
[342145529,1731507035888,-500.0,0.00019788,2]
[342145530,1731507035898,-500.0,0.00019788,2]
[342145531,1731507035907,-500.0,0.00019788,2]
[342145532,1731507035917,-535.59050543,0.00019788,2]
[342145533,1731507035926,-506.36589197,0.00019788,2]
[342145534,1731507035936,-500.0,0.00019788,2]
[342145535,1731507035946,-500.0,0.00019788,2]
[342145536,1731507035956,-500.0,0.00019788,2]
[342145537,1731507035966,-242.32537196,0.00019788,2]
[342145538,1731507035976,-500.0,0.00019788,2]
[342145539,1731507035986,-500.0,0.00019788,2]
[342145540,1731507035999,-500.0,0.00019788,2]
[342145541,1731507036009,-500.63130375,0.00019788,2]
[342145542,1731507036019,-500.0,0.00019788,2]
[342145543,1731507036028,-500.0,0.00019788,2]
[342145544,1731507036039,-500.0,0.00019788,2]
[342145545,1731507036049,-302.17200944,0.00019788,2]
[342145546,1731507036058,-500.0,0.00019788,2]
[342145547,1731507036068,-500.0,0.00019788,2]
[342145548,1731507036078,-594.82163871,0.00019788,2]
[342145549,1731507036088,-500.0,0.00019788,2]
[342145550,1731507036097,-500.0,0.00019788,2]
[342145551,1731507036106,-500.0,0.00019788,2]
[342145552,1731507036115,-500.0,0.00019788,2]
[342145553,1731507036124,-500.70509743,0.00019788,2]
[342145554,1731507036134,-631.3655551,0.00019788,2]
[342145555,1731507036143,-500.0,0.00019788,2]
[342145556,1731507036153,-500.0,0.00019788,2]
[342145557,1731507036162,-500.0,0.00019788,2]
[342145558,1731507036171,-505.73811988,0.00019788,2]
[342145559,1731507036181,-500.0,0.00019788,2]
[342145560,1731507036190,-500.0,0.00019788,2]
[342145561,1731507036199,-500.0,0.00019788,2]
[342145562,1731507036209,-500.0,0.00019788,2]
[342145563,1731507036218,-500.0,0.00019788,2]
[342145564,1731507036227,-501.38931023,0.00019788,2]
[342145565,1731507036237,-500.0,0.00019788,2]
[342145566,1731507036252,-506.22046622,0.00019788,2]
[342145567,1731507036262,-500.0,0.00019788,2]
[342145568,1731507036274,-500.0,0.00019788,2]
[342145569,1731507036285,-502.22450818,0.00019788,2]
[342145570,1731507036295,-500.7002636,0.00019788,2]
[342145571,1731507036304,-500.0,0.00019788,2]
[342145572,1731507036313,-500.0,0.00019788,2]
[342145573,1731507036323,-500.0,0.00019788,2]
[342145574,1731507036332,-500.0,0.00019788,2]
[342145575,1731507036342,-500.0,0.00019788,2]
[342145576,1731507036351,-500.0,0.00019788,2]
[342145577,1731507036360,-500.0,0.00019788,2]
[342145578,1731507036370,-200.15941567,0.00019788,2]
[342145579,1731507036380,-574.61523513,0.00019788,2]
[342145580,1731507036389,-500.0,0.00019788,2]
[342145581,1731507036399,-500.0,0.00019788,2]
[342145582,1731507036409,-506.01402819,0.00019788,2]
[342145583,1731507036418,-500.0,0.00019788,2]
[342145584,1731507036428,-273.39816753,0.00019788,2]
[342145585,1731507036438,-500.0,0.00019788,2]
[342145586,1731507036448,-501.20159563,0.00019788,2]
[342145587,1731507036457,-503.26942704,0.00019788,2]
[342145588,1731507036467,-500.0,0.00019788,2]
[342145589,1731507036476,-500.0,0.00019788,2]
[342145590,1731507036486,-500.0,0.00019788,2]
[342145591,1731507036500,-500.0,0.00019788,2]
[342145592,1731507036510,-500.0,0.00019788,2]
[342145593,1731507036519,-256.105222,0.00019788,2]
[342145594,1731507036528,-502.39943099,0.00019788,2]
[342145595,1731507036538,-500.0,0.00019788,2]
[342145596,1731507036548,-500.0,0.00019788,2]
[342145597,1731507036557,-500.0,0.00019788,2]
[342145598,1731507036567,-533.55541129,0.00019788,2]
[342145599,1731507036579,-500.0,0.00019788,2]
[342145600,1731507036589,-500.0,0.00019788,2]
[342145601,1731507036599,-503.63687815,0.00019788,2]
[342145602,1731507036608,-500.0,0.00019788,2]
[342145603,1731507036619,-500.0,0.00019788,2]
[342145604,1731507036628,-621.89756307,0.00019788,2]
[342145605,1731507036637,-500.0,0.00019788,2]
[342145606,1731507036646,-500.0,0.00019788,2]
[342145607,1731507036657,-500.0,0.00019788,2]
[342145608,1731507036666,-500.0,0.00019788,2]
[342145609,1731507036676,-500.0,0.00019788,2]
[342145610,1731507036685,-500.0,0.00019788,2]
[342145611,1731507036695,-500.0,0.00019788,2]
[342145612,1731507036704,-500.0,0.00019788,2]
[342145613,1731507036714,-500.0,0.00019788,2]
[342145614,1731507036724,-500.0,0.00019788,2]
[342145615,1731507036733,-500.0,0.00019788,2]
[342145616,1731507036743,-310.14516488,0.00019788,2]
[342145617,1731507036755,-500.0,0.00019788,2]
[342145618,1731507036764,-500.0,0.00019788,2]
[342145619,1731507036774,-500.0,0.00019788,2]
[342145620,1731507036783,-219.73804015,0.00019788,2]
[342145621,1731507036793,-500.0,0.00019788,2]
[342145622,1731507036802,-513.037429,0.00019788,2]
[342145623,1731507036812,-500.0,0.00019789,2]
[342145624,1731507036822,-500.0,0.00019789,2]
[342145625,1731507036832,-292.85648473,0.00019789,2]
[342145626,1731507036842,-500.0,0.00019789,2]
[342145627,1731507036852,-502.90773444,0.00019789,2]
[342145628,1731507036861,-502.66921834,0.00019789,2]
[342145629,1731507036871,-500.0,0.00019789,2]
[342145630,1731507036881,-501.28719312,0.00019789,2]
[342145631,1731507036891,-503.98009812,0.00019789,2]
[342145632,1731507036900,-500.0,0.00019789,2]
[342145633,1731507036909,-266.808584,0.00019789,2]
[342145634,1731507036919,-534.567838,0.00019789,2]
[342145635,1731507036928,-525.49431073,0.00019789,2]
[342145636,1731507036938,-500.0,0.00019789,2]
[342145637,1731507036947,-500.0,0.00019789,2]
[342145638,1731507036957,-500.0,0.0001979,2]
[342145639,1731507036966,-510.76015728,0.0001996,2]
[342145640,1731507036975,-1169.27083333,0.0002,2]
[342145641,1731507036985,-500.0,0.00020058,2]
[342145642,1731507036998,-500.0,0.00020058,2]
[342145643,1731507037009,-500.0,0.00020058,2]
[342145644,1731507037019,-500.0,0.00020058,2]
[342145645,1731507037028,-500.0,0.00020058,2]
[342145646,1731507037037,-500.0,0.00020058,2]
[342145647,1731507037047,-500.0,0.00020058,2]
[342145648,1731507037057,-2917.81,0.00020058,2]
[342145649,1731507037066,-219.69,0.00020059,2]
[342145650,1731507037076,-500.0,0.00020059,2]
[342145651,1731507037085,-500.0,0.00020059,2]
[342145652,1731507037095,-500.0,0.00020059,2]
[342145653,1731507037104,-500.0,0.00020059,2]
[342145654,1731507037114,-500.0,0.00020059,2]
[342145655,1731507037123,-500.0,0.00020059,2]
[342145656,1731507037133,-500.0,0.00020059,2]
[342145657,1731507037142,-500.0,0.00020059,2]
[342145658,1731507037151,-565.83,0.00020059,2]
[342145659,1731507037161,-500.0,0.00020059,2]
[342145660,1731507037170,-500.0,0.00020059,2]
[342145661,1731507037180,-500.0,0.00020059,2]
[342145662,1731507037190,-500.0,0.00020059,2]
[342145663,1731507037199,-500.0,0.00020059,2]
[342145664,1731507037209,-500.0,0.00020059,2]
[342145665,1731507037218,-988.89,0.00020059,2]
[342145666,1731507037227,-500.0,0.00020059,2]
[342145667,1731507037237,-500.0,0.00020059,2]
[342145668,1731507037250,-500.0,0.00020059,2]
[342145669,1731507037259,-500.0,0.00020059,2]
[342145670,1731507037269,-500.0,0.00020059,2]
[342145671,1731507037279,-500.0,0.00020059,2]
[342145672,1731507037289,-646.17,0.00020059,2]
[342145673,1731507037300,-500.0,0.00020059,2]
[342145674,1731507037310,-500.0,0.00020059,2]
[342145675,1731507037320,-500.0,0.00020059,2]
[342145676,1731507037330,-883.29,0.00020059,2]
[342145677,1731507037339,-500.0,0.00020059,2]
[342145678,1731507037349,-500.0,0.00020059,2]
[342145679,1731507037358,-500.0,0.00020059,2]
[342145680,1731507037367,-500.0,0.00020059,2]
[342145681,1731507037377,-500.0,0.00020059,2]
[342145682,1731507037387,-500.0,0.00020059,2]
[342145683,1731507037396,-500.0,0.00020059,2]
[342145684,1731507037406,-500.0,0.00020059,2]
[342145685,1731507037415,-500.0,0.00020059,2]
[342145686,1731507037424,-500.0,0.00020059,2]
[342145687,1731507037434,-500.0,0.00020059,2]
[342145688,1731507037443,-500.0,0.00020059,2]
[342145689,1731507037453,-500.0,0.00020059,2]
[342145690,1731507037463,-163.78235647,0.00020059,2]
[342145691,1731507037473,-204.71480501,0.00020059,2]
[342145692,1731507037482,-288.44404385,0.00020059,2]
[342145693,1731507037492,-500.0,0.0002006,2]
[342145694,1731507037506,-500.0,0.0002006,2]
[342145695,1731507037515,-501.19604951,0.0002006,2]
[342145696,1731507037525,-634.35504128,0.0002006,2]
[342145697,1731507037536,-514.25,0.0002006,2]
[342145698,1731507037545,-500.0,0.0002006,2]